[Event "25th Abu Dhabi Master 2018"]
[Site "Abu Dhabi"]
[Date "2018.08.08"]
[Round "2"]
[White "Omar, Noaman"]
[Black "Debashis, Das"]
[Result "1/2-1/2"]
[ECO "E32"]
[WhiteElo "2353"]
[BlackElo "2539"]
[Annotator "ChessBase"]
[PlyCount "80"]
[EventDate "2018.08.05"]
[EventType "swiss"]
[EventCountry "UAE"]
[SourceTitle "playchess.com"]
[Source "ChessBase"]
[SourceQuality "1"]
[TimeControl "5400+30"]

1. d4 {[%emt 0:06:08]} Nf6 {[%emt 0:00:00]} 2. c4 {[%emt 0:00:08]} e6 {[%emt 0:00:03]} 3. Nc3 {[%emt 0:00:08]} Bb4 {[%emt 0:00:18]} 4. Qc2 {[%emt 0:00:09]} O-O {[%emt 0:00:06]} 5. Nf3 {[%emt 0:00:26]} c5 {[%emt 0:00:08]} 6. dxc5 {[%emt 0:00:18]} Na6 {[%emt 0:00:04]} 7. g3 {[%emt 0:00:10]} Nxc5 {[%emt 0:00:04]} 8. Bg2 {[%emt 0:00:09]} b6 {[%emt 0:00:06]} 9. O-O {[%emt 0:00:13]} Bb7 {[%emt 0:00:03]} 10. Nb5 {[%emt 0:01:08]} Be4 {[%emt 0:00:06]} 11. Qd1 {[%emt 0:00:12]} Nb7 {[%emt 0:00:05]} 12. Bf4 {[%emt 0:02:40]} Rc8 {[%emt 0:07:11]} 13. Rc1 {[%emt 0:04:45]} a6 {[%emt 0:05:36]} 14. Nd6 {[%emt 0:00:53]} Nxd6 {[%emt 0:00:41]} 15. Bxd6 {[%emt 0:00:09]} Bxd6 {[%emt 0:00:04]} 16. Qxd6 {[%emt 0:00:11]} Rc6 {[%emt 0:06:37]} 17. Qd4 {[%emt 0:06:03]} Qa8 {[%emt 0:05:30]} 18. Rc3 {[%emt 0:01:47]} Rfc8 {[%emt 0:07:33]} 19. Rfc1 {[%emt 0:01:37]} h6 {[%emt 0:10:59]} 20. h3 {[%emt 0:09:26]} d6 {[%emt 0:08:09]} 21. Ne1 {[%emt 0:21:15]} d5 {[%emt 0:07:38]} 22. f3 {[%emt 0:14:54]} Bg6 {[%emt 0:02:09]} 23. cxd5 {[%emt 0:01:50]} Rxc3 {[%emt 0:02:55]} 24. Rxc3 {[%emt 0:00:03]} Rxc3 {[%emt 0:01:14]} 25. Qxc3 Qxd5 {[%emt 0:04:30]} 26. e4 {[%emt 0:04:13]} Qxa2 {[%emt 0:02:02]} 27. Nd3 {[%emt 0:01:40]} Kh7 {[%emt 0:03:52]} 28. Ne5 {[%emt 0:02:59]} Qb1+ {[%emt 0:01:29]} 29. Kh2 {[%emt 0:00:35]} Qd1 {[%emt 0:03:41]} 30. Qc7 {[%emt 0:07:57]} Qd4 {[%emt 0:04:17]} 31. Nxf7 {[%emt 0:00:27]} Bxf7 {[%emt 0:01:09]} 32. Qxf7 {[%emt 0:00:05]} e5 {[%emt 0:01:27]} 33. b3 {[%emt 0:03:35]} Qd7 {[%emt 0:02:06]} 34. Qf8 {[%emt 0:01:04]} a5 {[%emt 0:02:45]} 35. h4 {[%emt 0:00:26]} Qd4 {[%emt 0:02:30]} 36. Qb8 {[%emt 0:04:01]} Qc5 {[%emt 0:03:42]} 37. Qa7 {[%emt 0:02:41]} Qe3 {[%emt 0:02:10]} 38. Qc7 {[%emt 0:00:52]} Qc5 {[%emt 0:00:18]} 39. Qa7 {[%emt 0:00:58]} Qe3 {[%emt 0:00:47]} 40. Qc7 {[%emt 0:00:09]} Qc5 {[%emt 0:01:20]} 1/2-1/2

[Event "25th Abu Dhabi Master 2018"]
[Site "Abu Dhabi"]
[Date "2018.08.08"]
[Round "2"]
[White "Samhouri, Admah Fawzi"]
[Black "Bhambure, Shantanu"]
[Result "1/2-1/2"]
[ECO "E43"]
[WhiteElo "2348"]
[BlackElo "2194"]
[Annotator "NA"]
[PlyCount "72"]
[EventDate "2018.08.05"]
[EventType "swiss"]
[EventCountry "UAE"]
[SourceTitle "playchess.com"]
[Source "ChessBase"]
[SourceQuality "1"]
[TimeControl "5400+30"]

1. d4 {[%emt 0:00:00]} Nf6 {[%emt 0:00:00]} 2. c4 {[%emt 0:00:26]} e6 {[%emt 0:00:00]} 3. Nc3 {[%emt 0:02:14]} Bb4 {[%emt 0:00:03]} 4. e3 {[%emt 0:02:20]} b6 {[%emt 0:01:37]} 5. Bd3 {[%emt 0:01:52]} Bb7 {[%emt 0:00:39]} 6. Nf3 {[%emt 0:04:04]} O-O {[%emt 0:01:59]} 7. Qc2 {[%emt 0:03:09]} d5 {[%emt 0:05:38]} 8. cxd5 {[%emt 0:00:58]} exd5 {[%emt 0:00:57]} 9. O-O {[%emt 0:00:43]} Nbd7 {[%emt 0:02:32]} 10. Ne5 {[%emt 0:13:51]} c5 {[%emt 0:12:19]} 11. f4 {[%emt 0:07:02]} Re8 {[%emt 0:17:33]} 12. Bd2 {[%emt 0:01:27]} cxd4 {[%emt 0:25:30]} 13. exd4 {[%emt 0:00:05]} a6 {[%emt 0:03:38]} 14. Rae1 {[%emt 0:03:15]} Bxc3 {[%emt 0:05:40]} 15. bxc3 {[%emt 0:03:16]} Ne4 {[%emt 0:02:46]} 16. Bxe4 {[%emt 0:06:34]} dxe4 {[%emt 0:00:08]} 17. Rb1 {[%emt 0:02:50]} b5 {[%emt 0:03:45]} 18. Qd1 {[%emt 0:20:43]} Bd5 {[%emt 0:03:42]} 19. Rb2 {[%emt 0:01:55]} f6 {[%emt 0:01:45]} 20. Nxd7 {[%emt 0:01:08]} Qxd7 {[%emt 0:00:05]} 21. Re1 {[%emt 0:01:13]} Rac8 {[%emt 0:04:06]} 22. Re3 {[%emt 0:04:51]} Qf5 {[%emt 0:01:24]} 23. a4 {[%emt 0:03:40]} Bc4 {[%emt 0:00:35]} 24. Rh3 {[%emt 0:01:32]} e3 {[%emt 0:02:51]} 25. Rxe3 {[%emt 0:02:04]} Rxe3 {[%emt 0:00:19]} 26. Bxe3 {[%emt 0:00:01]} Re8 {[%emt 0:00:16]} 27. Bf2 {[%emt 0:02:43]} Qxf4 {[%emt 0:02:25]} 28. axb5 {[%emt 0:00:01]} axb5 {[%emt 0:00:16]} 29. d5 {[%emt 0:01:04]} Rd8 {[%emt 0:01:21]} 30. Rd2 {[%emt 0:00:02]} Qe5 {[%emt 0:00:38]} 31. d6 {[%emt 0:03:08]} Rd7 {[%emt 0:00:12]} 32. Bd4 {[%emt 0:01:35]} Qe4 {[%emt 0:00:45]} 33. Bf2 {[%emt 0:00:45]} Qe5 {[%emt 0:00:09]} 34. Bd4 {[%emt 0:02:52]} Qe4 {[%emt 0:00:06]} 35. Bf2 {[%emt 0:00:09]} Qe5 {[%emt 0:00:04]} 36. Bd4 {[%emt 0:02:13]} Qe4 {[%emt 0:00:04]} 1/2-1/2

[Event "25th Abu Dhabi Master 2018"]
[Site "Abu Dhabi"]
[Date "2018.08.08"]
[Round "2"]
[White "Saravana, Krishnan P"]
[Black "Aryan, Chopra"]
[Result "1/2-1/2"]
[ECO "E62"]
[WhiteElo "2348"]
[BlackElo "2536"]
[Annotator "ChessBase"]
[PlyCount "63"]
[EventDate "2018.08.05"]
[EventType "swiss"]
[EventCountry "UAE"]
[SourceTitle "playchess.com"]
[Source "ChessBase"]
[SourceQuality "1"]
[TimeControl "5400+30"]

1. d4 Nf6 2. c4 g6 3. g3 Bg7 4. Bg2 O-O 5. Nc3 d6 6. Nf3 Nc6 7. O-O e5 8. dxe5 Nxe5 9. Nxe5 dxe5 10. Qxd8 Rxd8 11. Bg5 Rd7 12. Rad1 c6 13. Na4 Rxd1 14. Rxd1 Be6 15. b3 Nd7 16. Nc3 f6 17. Be3 Bf8 18. Ne4 Kf7 19. f4 exf4 20. gxf4 a5 21. a4 Rc8 22. Kf2 h6 23. Nd6+ Bxd6 24. Rxd6 Ke7 25. Rd2 b6 26. Bd4 Nc5 27. Bxc5+ bxc5 28. Rd3 g5 29. Re3 Kd6 30. Rd3+ Ke7 31. Re3 Kd6 32. Rd3+ {Ke5} 1/2-1/2

[Event "25th Abu Dhabi Master 2018"]
[Site "Abu Dhabi"]
[Date "2018.08.08"]
[Round "2"]
[White "Sidhant, Mohapatra"]
[Black "Divya, Deshmukh"]
[Result "1-0"]
[ECO "A48"]
[WhiteElo "2341"]
[BlackElo "2172"]
[Annotator "NA"]
[PlyCount "71"]
[EventDate "2018.08.05"]
[EventType "swiss"]
[EventCountry "UAE"]
[SourceTitle "playchess.com"]
[Source "ChessBase"]
[SourceQuality "1"]
[TimeControl "5400+30"]

1. Nf3 {[%emt 0:00:53]} Nf6 {[%emt 0:00:00]} 2. d4 {[%emt 0:00:14]} g6 {[%emt 0:00:00]} 3. Bg5 {[%emt 0:00:27]} Bg7 {[%emt 0:00:00]} 4. Nbd2 {[%emt 0:00:13]} d5 {[%emt 0:00:22]} 5. e3 {[%emt 0:00:07]} O-O {[%emt 0:00:21]} 6. Bd3 {[%emt 0:00:07]} b6 {[%emt 0:02:13]} 7. Qe2 {[%emt 0:00:21]} Bb7 {[%emt 0:00:28]} 8. h4 {[%emt 0:00:34]} c5 {[%emt 0:16:35]} 9. c3 {[%emt 0:00:10]} Ne4 {[%emt 0:15:28]} 10. h5 {[%emt 0:24:23]} Nd7 {[%emt 0:10:39]} 11. hxg6 {[%emt 0:01:48]} hxg6 {[%emt 0:01:19]} 12. Bf4 {[%emt 0:09:48]} Nxd2 {[%emt 0:08:29]} 13. Qxd2 {[%emt 0:01:04]} e6 {[%emt 0:05:57]} 14. O-O-O {[%emt 0:02:45]} Qe7 {[%emt 0:01:56]} 15. Rh3 {[%emt 0:03:41]} e5 {[%emt 0:05:49]} 16. dxe5 {[%emt 0:00:44]} Nxe5 {[%emt 0:00:48]} 17. Nxe5 {[%emt 0:00:39]} Bxe5 {[%emt 0:00:04]} 18. Bxe5 {[%emt 0:00:10]} Qxe5 {[%emt 0:00:05]} 19. f4 {[%emt 0:00:05]} Qg7 {[%emt 0:05:31]} 20. f5 {[%emt 0:01:54]} Rad8 {[%emt 0:00:58]} 21. g4 {[%emt 0:01:12]} d4 {[%emt 0:00:41]} 22. exd4 {[%emt 0:01:50]} cxd4 {[%emt 0:00:25]} 23. c4 {[%emt 0:00:02]} Rfe8 {[%emt 0:02:26]} 24. Rf1 {[%emt 0:01:50]} Rd6 {[%emt 0:01:28]} 25. Qh2 {[%emt 0:05:46]} Red8 {[%emt 0:06:48]} 26. Rh6 {[%emt 0:03:43]} Re8 {[%emt 0:10:21]} 27. g5 {[%emt 0:03:21]} Qe5 {[%emt 0:00:23]} 28. fxg6 {[%emt 0:00:05]} fxg6 {[%emt 0:00:03]} 29. Rh8+ {[%emt 0:00:12]} Qxh8 {[%emt 0:00:04]} 30. Qxd6 {[%emt 0:00:05]} Qg7 {[%emt 0:01:29]} 31. Rf6 {[%emt 0:02:26]} Re1+ {[%emt 0:00:22]} 32. Kd2 {[%emt 0:00:43]} Qe7 {[%emt 0:00:13]} 33. Rxg6+ {[%emt 0:00:24]} Kf7 {[%emt 0:00:26]} 34. Qf4+ {[%emt 0:00:34]} Ke8 {[%emt 0:00:04]} 35. Qb8+ {[%emt 0:00:07]} Kf7 {[%emt 0:00:05]} 36. Qg8# {[%emt 0:00:05]} 1-0

[Event "25th Abu Dhabi Master 2018"]
[Site "Abu Dhabi"]
[Date "2018.08.08"]
[Round "2"]
[White "Ahmad, Al Khatib"]
[Black "Mendonca, Leon Luke"]
[Result "0-1"]
[ECO "B25"]
[WhiteElo "2336"]
[BlackElo "2168"]
[Annotator "NA"]
[PlyCount "145"]
[EventDate "2018.08.05"]
[EventType "swiss"]
[EventCountry "UAE"]
[SourceTitle "playchess.com"]
[Source "ChessBase"]
[SourceQuality "1"]
[TimeControl "5400+30"]

1. e4 {[%emt 0:00:00]} c5 {[%emt 0:00:00]} 2. Nc3 {[%emt 0:00:00]} d6 {[%emt 0:00:48]} 3. g3 {[%emt 0:00:05]} Nc6 {[%emt 0:00:19]} 4. Bg2 {[%emt 0:00:07]} g6 {[%emt 0:00:32]} 5. d3 {[%emt 0:00:07]} Bg7 {[%emt 0:00:25]} 6. f4 {[%emt 0:00:09]} e6 {[%emt 0:01:37]} 7. Nf3 {[%emt 0:01:12]} Nge7 {[%emt 0:00:28]} 8. O-O {[%emt 0:00:08]} O-O {[%emt 0:00:21]} 9. Be3 {[%emt 0:00:10]} Nd4 {[%emt 0:04:00]} 10. Bf2 {[%emt 0:01:18]} Nxf3+ {[%emt 0:08:19]} 11. Bxf3 {[%emt 0:04:23]} Nc6 {[%emt 0:00:58]} 12. e5 {[%emt 0:09:22]} Nd4 {[%emt 0:28:53]} 13. Bg2 {[%emt 0:00:57]} dxe5 {[%emt 0:07:59]} 14. fxe5 {[%emt 0:00:08]} Bxe5 {[%emt 0:08:33]} 15. Ne4 {[%emt 0:00:25]} f5 {[%emt 0:08:20]} 16. Nxc5 {[%emt 0:00:26]} Qc7 {[%emt 0:00:49]} 17. b4 {[%emt 0:07:04]} Bg7 {[%emt 0:02:22]} 18. Re1 {[%emt 0:12:04]} a5 {[%emt 0:09:03]} 19. c3 {[%emt 0:23:54]} Nb5 {[%emt 0:00:16]} 20. bxa5 {[%emt 0:15:11]} Nxc3 {[%emt 0:05:56]} 21. Qb3 {[%emt 0:02:20]} Rxa5 {[%emt 0:05:40]} 22. Nxe6 {[%emt 0:08:36]} Bxe6 {[%emt 0:00:12]} 23. Rxe6 {[%emt 0:00:40]} Qf7 {[%emt 0:04:48]} 24. Rae1 {[%emt 0:03:40]} Rxa2 {[%emt 0:00:46]} 25. Bc5 {[%emt 0:03:58]} Re2 {[%emt 0:00:31]} 26. Kf1 {[%emt 0:04:50]} Rxe1+ {[%emt 0:00:27]} 27. Kxe1 {[%emt 0:00:06]} Ra8 {[%emt 0:00:33]} 28. d4 {[%emt 0:01:53]} Ne4 {[%emt 0:00:22]} 29. Bxe4 {[%emt 0:00:38]} fxe4 {[%emt 0:00:06]} 30. Rb6 {[%emt 0:00:25]} Qxb3 {[%emt 0:00:58]} 31. Rxb3 {[%emt 0:00:04]} Ra1+ {[%emt 0:00:31]} 32. Ke2 {[%emt 0:00:08]} Bh6 {[%emt 0:00:27]} 33. d5 {[%emt 0:00:48]} Ra2+ {[%emt 0:00:29]} 34. Kf1 {[%emt 0:00:26]} Ra5 {[%emt 0:00:29]} 35. Rc3 {[%emt 0:01:04]} e3 {[%emt 0:00:36]} 36. d6 {[%emt 0:00:42]} Ra1+ {[%emt 0:00:07]} 37. Ke2 {[%emt 0:00:24]} Ra2+ {[%emt 0:00:01]} 38. Kf3 {[%emt 0:00:30]} e2 {[%emt 0:00:32]} 39. Bf2 {[%emt 0:00:27]} Rd2 {[%emt 0:01:17]} 40. Rc8+ {[%emt 0:00:16]} Bf8 {[%emt 0:00:31]} 41. Be1 {[%emt 0:00:52]} Rxd6 {[%emt 0:00:21]} 42. Kxe2 {[%emt 0:00:10]} Re6+ {[%emt 0:00:15]} 43. Kf2 {[%emt 0:00:35]} Kf7 {[%emt 0:00:23]} 44. Bd2 {[%emt 0:00:46]} Rc6 {[%emt 0:00:38]} 45. Rb8 {[%emt 0:00:11]} Bc5+ {[%emt 0:00:41]} 46. Ke2 {[%emt 0:00:21]} Rc7 {[%emt 0:00:44]} 47. Bf4 {[%emt 0:00:35]} Rd7 {[%emt 0:00:21]} 48. h4 {[%emt 0:00:41]} Ke6 {[%emt 0:00:22]} 49. h5 {[%emt 0:00:42]} gxh5 {[%emt 0:00:11]} 50. Re8+ {[%emt 0:00:16]} Kd5 {[%emt 0:00:53]} 51. Kd3 {[%emt 0:00:40]} Bd6 {[%emt 0:00:39]} 52. Bxd6 {[%emt 0:00:34]} Kxd6 {[%emt 0:00:02]} 53. Rg8 {[%emt 0:00:29]} Ke5+ {[%emt 0:00:10]} 54. Ke3 {[%emt 0:00:09]} Kf5 {[%emt 0:00:21]} 55. Rf8+ {[%emt 0:00:36]} Kg4 {[%emt 0:00:27]} 56. Rg8+ {[%emt 0:00:30]} Kh3 {[%emt 0:00:13]} 57. Rg5 {[%emt 0:00:44]} h4 {[%emt 0:00:20]} 58. gxh4 {[%emt 0:00:04]} Kxh4 {[%emt 0:00:03]} 59. Rg1 {[%emt 0:00:35]} h5 {[%emt 0:00:39]} 60. Ke4 {[%emt 0:00:36]} b5 {[%emt 0:00:59]} 61. Kf4 {[%emt 0:00:42]} Rf7+ {[%emt 0:00:05]} 62. Ke5 {[%emt 0:00:16]} b4 {[%emt 0:00:34]} 63. Rh1+ {[%emt 0:00:40]} Kg5 {[%emt 0:00:12]} 64. Rg1+ {[%emt 0:00:23]} Kh6 {[%emt 0:00:06]} 65. Rb1 {[%emt 0:00:40]} Rb7 {[%emt 0:00:22]} 66. Kf5 {[%emt 0:00:35]} b3 {[%emt 0:00:14]} 67. Rb2 {[%emt 0:00:05]} Rb4 {[%emt 0:00:18]} 68. Kf6 {[%emt 0:00:20]} h4 {[%emt 0:00:14]} 69. Kf5 {[%emt 0:01:02]} Kh5 {[%emt 0:00:10]} 70. Ke5 {[%emt 0:00:32]} h3 {[%emt 0:00:08]} 71. Kd5 {[%emt 0:00:08]} Kg4 {[%emt 0:00:13]} 72. Kc5 {[%emt 0:00:11]} Rb8 {[%emt 0:00:08]} 73. Kd4 0-1

[Event "25th Abu Dhabi Master 2018"]
[Site "Abu Dhabi"]
[Date "2018.08.08"]
[Round "2"]
[White "Siva, Mahadevan"]
[Black "Srinivasa Rao, M.."]
[Result "1/2-1/2"]
[ECO "C42"]
[WhiteElo "2331"]
[BlackElo "2160"]
[Annotator "NA"]
[PlyCount "133"]
[EventDate "2018.08.05"]
[EventType "swiss"]
[EventCountry "UAE"]
[SourceTitle "playchess.com"]
[Source "ChessBase"]
[SourceQuality "1"]
[TimeControl "5400+30"]

1. e4 {[%emt 0:00:00]} e5 {[%emt 0:00:00]} 2. Nf3 {[%emt 0:00:00]} Nf6 {[%emt 0:00:00]} 3. Nxe5 {[%emt 0:00:22]} d6 {[%emt 0:00:04]} 4. Nf3 {[%emt 0:00:08]} Nxe4 {[%emt 0:00:09]} 5. Nc3 {[%emt 0:00:11]} Nxc3 {[%emt 0:00:08]} 6. dxc3 {[%emt 0:00:07]} Be7 {[%emt 0:00:11]} 7. Be3 {[%emt 0:00:10]} Nd7 {[%emt 0:00:40]} 8. Qd2 {[%emt 0:00:20]} Ne5 {[%emt 0:00:10]} 9. Be2 {[%emt 0:08:03]} O-O {[%emt 0:01:04]} 10. O-O-O {[%emt 0:00:12]} Ng4 {[%emt 0:01:33]} 11. Bd3 {[%emt 0:08:21]} Nxe3 {[%emt 0:00:30]} 12. Qxe3 {[%emt 0:00:02]} Re8 {[%emt 0:05:56]} 13. h4 {[%emt 0:14:34]} Bd7 {[%emt 0:04:37]} 14. Qf4 {[%emt 0:01:28]} Bf6 {[%emt 0:02:48]} 15. Kb1 {[%emt 0:21:38]} a5 {[%emt 0:15:16]} 16. g4 {[%emt 0:21:38]} Be5 {[%emt 0:03:08]} 17. Bxh7+ {[%emt 0:04:54]} Kf8 {[%emt 0:00:10]} 18. Nxe5 {[%emt 0:02:26]} dxe5 {[%emt 0:01:04]} 19. Qf3 {[%emt 0:02:58]} Qc8 {[%emt 0:02:06]} 20. Bf5 {[%emt 0:01:29]} Bxf5 {[%emt 0:00:35]} 21. gxf5 {[%emt 0:00:10]} Ra6 {[%emt 0:00:11]} 22. Rhg1 {[%emt 0:02:24]} Rh6 {[%emt 0:10:58]} 23. h5 {[%emt 0:01:28]} Rd8 {[%emt 0:02:42]} 24. Rde1 {[%emt 0:00:47]} f6 {[%emt 0:01:44]} 25. Rg6 {[%emt 0:01:59]} Qd7 {[%emt 0:01:46]} 26. Reg1 {[%emt 0:01:36]} Qd5 {[%emt 0:01:51]} 27. Qg4 {[%emt 0:05:00]} Rxg6 {[%emt 0:00:12]} 28. hxg6 {[%emt 0:00:02]} Ke7 {[%emt 0:06:45]} 29. b3 {[%emt 0:00:56]} Qc5 {[%emt 0:02:29]} 30. Qh4 {[%emt 0:00:26]} Ke8 {[%emt 0:06:48]} 31. Rh1 {[%emt 0:00:57]} Rd7 {[%emt 0:07:29]} 32. Qh8+ {[%emt 0:00:39]} Qf8 {[%emt 0:00:07]} 33. Kc1 {[%emt 0:00:22]} e4 {[%emt 0:09:53]} 34. Qxf8+ {[%emt 0:00:23]} Kxf8 {[%emt 0:00:05]} 35. Rh8+ {[%emt 0:00:01]} Ke7 {[%emt 0:00:10]} 36. Rg8 {[%emt 0:00:25]} Kd6 {[%emt 0:01:04]} 37. Re8 {[%emt 0:00:12]} Re7 {[%emt 0:00:12]} 38. Rf8 {[%emt 0:01:25]} Re5 {[%emt 0:00:33]} 39. Rf7 {[%emt 0:00:10]} Rxf5 {[%emt 0:00:07]} 40. Rxg7 {[%emt 0:00:03]} Rxf2 {[%emt 0:01:31]} 41. Rf7 {[%emt 0:01:29]} Ke6 {[%emt 0:00:37]} 42. Rxc7 {[%emt 0:00:10]} e3 {[%emt 0:00:11]} 43. Rc8 {[%emt 0:00:45]} Rg2 {[%emt 0:03:50]} 44. Re8+ {[%emt 0:00:06]} Kd7 {[%emt 0:00:28]} 45. Rxe3 {[%emt 0:00:02]} Rxg6 {[%emt 0:00:09]} 46. Kd2 {[%emt 0:00:02]} Kd6 {[%emt 0:01:34]} 47. Kd3 {[%emt 0:01:35]} Rg2 {[%emt 0:00:55]} 48. a4 {[%emt 0:00:40]} Rf2 {[%emt 0:01:40]} 49. Kc4 {[%emt 0:00:40]} Rxc2 {[%emt 0:02:53]} 50. Kb5 {[%emt 0:00:05]} Rb2 {[%emt 0:00:06]} 51. c4 {[%emt 0:00:03]} f5 {[%emt 0:01:01]} 52. Kxa5 {[%emt 0:01:03]} Kc5 {[%emt 0:00:35]} 53. Rf3 {[%emt 0:00:51]} f4 {[%emt 0:01:07]} 54. Rd3 {[%emt 0:00:01]} b6+ {[%emt 0:00:40]} 55. Ka6 {[%emt 0:00:01]} Kb4 {[%emt 0:00:11]} 56. Kxb6 {[%emt 0:00:59]} Rxb3 {[%emt 0:00:17]} 57. Rd4 {[%emt 0:00:27]} Kxa4+ {[%emt 0:01:21]} 58. Kc6 {[%emt 0:00:02]} f3 {[%emt 0:00:20]} 59. Rf4 {[%emt 0:00:59]} Ka5 {[%emt 0:00:40]} 60. c5 {[%emt 0:00:14]} Rc3 {[%emt 0:00:18]} 61. Kd6 {[%emt 0:00:58]} Kb5 {[%emt 0:00:16]} 62. Rf5 {[%emt 0:00:01]} Rd3+ {[%emt 0:00:16]} 63. Kc7 {[%emt 0:00:09]} Rc3 {[%emt 0:01:16]} 64. c6+ {[%emt 0:00:42]} Rc5 {[%emt 0:00:21]} 65. Rf6 {[%emt 0:00:25]} f2 {[%emt 0:00:13]} 66. Kb7 {[%emt 0:00:00]} Rxc6 {[%emt 0:00:00]} 67. Re6 1/2-1/2

[Event "25th Abu Dhabi Master 2018"]
[Site "Abu Dhabi"]
[Date "2018.08.08"]
[Round "2"]
[White "Mithil, Ajgaonkar"]
[Black "Thompson, Ian D"]
[Result "1-0"]
[ECO "D45"]
[WhiteElo "2318"]
[BlackElo "2156"]
[Annotator "NA"]
[PlyCount "99"]
[EventDate "2018.08.05"]
[EventType "swiss"]
[EventCountry "UAE"]
[SourceTitle "playchess.com"]
[Source "ChessBase"]
[SourceQuality "1"]
[TimeControl "5400+30"]

1. d4 {[%emt 0:00:08]} d5 {[%emt 0:00:00]} 2. c4 {[%emt 0:00:06]} c6 {[%emt 0:00:16]} 3. e3 {[%emt 0:00:22]} Nf6 {[%emt 0:00:48]} 4. Nc3 {[%emt 0:00:02]} e6 {[%emt 0:00:21]} 5. Nf3 {[%emt 0:00:02]} Nbd7 {[%emt 0:00:13]} 6. Qc2 {[%emt 0:00:11]} Bd6 {[%emt 0:00:31]} 7. b3 {[%emt 0:00:07]} O-O {[%emt 0:00:27]} 8. Be2 {[%emt 0:04:20]} Re8 {[%emt 0:00:24]} 9. O-O {[%emt 0:00:10]} Qe7 {[%emt 0:00:26]} 10. Bb2 {[%emt 0:00:07]} b6 {[%emt 0:00:52]} 11. Nd2 {[%emt 0:22:52]} c5 {[%emt 0:09:48]} 12. Bf3 {[%emt 0:25:24]} Bb7 {[%emt 0:01:14]} 13. Rfe1 {[%emt 0:00:25]} Rac8 {[%emt 0:03:43]} 14. Rad1 {[%emt 0:15:28]} Bb8 {[%emt 0:20:43]} 15. Nf1 {[%emt 0:04:12]} Nf8 {[%emt 0:01:51]} 16. cxd5 {[%emt 0:02:46]} exd5 {[%emt 0:03:28]} 17. dxc5 {[%emt 0:03:09]} Qxc5 {[%emt 0:01:08]} 18. Qf5 {[%emt 0:10:51]} Be5 {[%emt 0:07:39]} 19. Na4 {[%emt 0:06:55]} Qd6 {[%emt 0:00:44]} 20. Bxe5 {[%emt 0:01:30]} Rxe5 {[%emt 0:00:02]} 21. Qb1 {[%emt 0:00:45]} Qe7 {[%emt 0:05:24]} 22. Ng3 {[%emt 0:00:19]} Ne4 {[%emt 0:02:49]} 23. Qa1 {[%emt 0:00:47]} b5 {[%emt 0:04:36]} 24. Nb2 {[%emt 0:00:01]} Qf6 {[%emt 0:24:56]} 25. Nd3 {[%emt 0:00:16]} Ree8 {[%emt 0:00:34]} 26. Qxf6 {[%emt 0:00:25]} Nxf6 {[%emt 0:00:02]} 27. Nf5 {[%emt 0:00:23]} Rcd8 {[%emt 0:03:52]} 28. Nc5 {[%emt 0:00:15]} Bc8 {[%emt 0:00:30]} 29. Nd4 {[%emt 0:00:52]} a6 {[%emt 0:00:19]} 30. Nd3 {[%emt 0:01:09]} Ne6 {[%emt 0:03:11]} 31. Nc6 {[%emt 0:00:06]} Rd6 {[%emt 0:00:16]} 32. Ndb4 {[%emt 0:00:32]} Bd7 {[%emt 0:01:58]} 33. Nd4 {[%emt 0:01:00]} g6 {[%emt 0:00:34]} 34. h4 {[%emt 0:00:15]} a5 {[%emt 0:00:53]} 35. Nd3 {[%emt 0:00:40]} Nxd4 {[%emt 0:00:31]} 36. exd4 {[%emt 0:00:02]} Ne4 {[%emt 0:00:59]} 37. Rc1 {[%emt 0:00:59]} b4 {[%emt 0:01:16]} 38. Rc7 {[%emt 0:00:25]} Rc8 {[%emt 0:01:00]} 39. Rec1 {[%emt 0:00:39]} Nc3 {[%emt 0:00:17]} 40. Rxc8+ {[%emt 0:00:05]} Bxc8 {[%emt 0:00:01]} 41. a3 {[%emt 0:00:19]} Bf5 {[%emt 0:00:44]} 42. axb4 {[%emt 0:00:55]} axb4 {[%emt 0:01:02]} 43. Nxb4 {[%emt 0:00:09]} Nb5 {[%emt 0:00:29]} 44. Nc6 {[%emt 0:00:29]} Be4 {[%emt 0:00:36]} 45. Be2 {[%emt 0:00:22]} Na3 {[%emt 0:00:11]} 46. Rc5 {[%emt 0:01:11]} Kg7 {[%emt 0:00:39]} 47. b4 {[%emt 0:00:28]} Nc2 {[%emt 0:00:38]} 48. b5 {[%emt 0:00:26]} Rd7 {[%emt 0:00:32]} 49. f3 {[%emt 0:00:11]} Bf5 {[%emt 0:00:27]} 50. g4 {[%emt 0:00:07]} 1-0